[Event "FIDE WSTC Open 50 2025"]
[Site "Prague"]
[Date "2025.02.18"]
[Round "2.7"]
[White "Nordenbaek, Jan"]
[Black "Hebden, Mark L"]
[Result "0-1"]
[Annotator "TA"]
[ECO "C55"]
[WhiteElo "2192"]
[BlackElo "2363"]
[PlyCount "98"]
[EventDate "2025.02.17"]
[EventType "team-tourn"]
[EventCountry "CZE"]
[SourceTitle "playchess.com"]
[Source "ChessBase"]
[SourceQuality "1"]
[TimeControl "40/5400+30:1800+30"]

{[%evp 11,98,0,0,7,9,-2,5,-10,-18,-27,-9,-13,-14,-49,-52,-41,-53,-48,-53,-56,-47,-52,-47,-51,-46,-51,-50,-43,-44,-76,-49,-81,-85,-83,-52,-100,-88,-107,-71,-77,-67,-77,-67,-70,-66,-69,-33,-31,-31,-48,-45,-50,-52,-51,-43,-47,-48,-63,-51,-81,-81,-81,-81,-81,-81,-81,-81,-81,-81,-83,-81,-83,-83,-83,-83,-266,-260,-286,-327,-407,-378,-435,-429,-416,-379,-6095,-6091,-5514,-5367]} 1. e4 {[%emt 0:00:28][%cal Be2e4,Be4e5][%mdl 32]} e5 {[%emt 0:00:20]} 2. Nf3 {[%emt 0:00:30]} Nc6 {[%emt 0:00:13]} 3. Bc4 {[%emt 0:00:34]} Nf6 {[%emt 0:00:12][%cal Bg8f6,Bf6e4,Be4c5,Bc5e6][%mdl 32]} 4. d4 {[%emt 0:01:12]} exd4 {[%emt 0:00:25]} 5. e5 {[%emt 0:00:54]} Ne4 {[%emt 0:00:17]} 6. Qe2 {[%emt 0:00:12]} Nc5 $1 {[%emt 0:00:10]} 7. O-O {[%emt 0:00:32] C56: Two Knights: 4 d4 exd4 5 0-0 Nxe4.} (7. c3 d3 8. Qe3 Be7 9. b4) 7... Ne6 {[%emt 0:00:11]} 8. Rd1 {[%emt 0:01:12]} d5 {[%emt 0:05:00]} 9. exd6 {[%emt 0:00:37] The position is equal.} Bxd6 {[%emt 0:00:23]} 10. Bg5 {[%emt 0:09:00]} Qd7 {[%emt 0:01:32]} 11. c3 {[%emt 0:02:52][%cal Rc3d4] White sacrificed a pawn} O-O {[%emt 0:05:27]} 12. Bxe6 $146 {[%emt 0:10:18]} (12. cxd4 {looks sharper.} Nxg5 13. Nxg5 Bf4 14. Nf3) (12. cxd4 h6 13. Be3 Nf4 14. Bxf4 Bxf4 15. Nc3 Re8 16. Qf1 a6 17. Nd5 Bd6 18. a4 {0-1 Aravindhan,A (2156)-Ruiz Buendia,M (2310) Sant Boi de Llobregat op 5th 2024 (10)}) 12... Qxe6 {[%emt 0:00:35]} 13. Qxe6 {[%emt 0:00:06]} Bxe6 {[%emt 0:00:11]} 14. Nxd4 {[%emt 0:00:11]} Nxd4 {[%emt 0:05:30]} 15. cxd4 {[%emt 0:01:31] White is weak on the light squares} h6 {[%emt 0:01:09]} 16. Be3 {[%emt 0:00:42]} Rfe8 {[%emt 0:06:23]} 17. Nc3 {[%emt 0:00:24]} Bd7 {[%emt 0:03:35]} 18. Rac1 {[%emt 0:02:29]} a6 {[%emt 0:00:34]} 19. d5 {[%emt 0:05:59]} Rad8 {[%emt 0:02:12]} 20. Rd2 {[%emt 0:08:01]} Re7 {[%emt 0:02:47] Black is more active.} 21. h4 {[%emt 0:18:08]} Rde8 {[%emt 0:01:07]} 22. Rdd1 {[%emt 0:02:21]} f5 {[%emt 0:03:27]} 23. Re1 {[%emt 0:01:00]} (23. a3 $15) 23... Kf7 {[%emt 0:04:10]} 24. Bd2 {[%emt 0:01:54]} Kf6 {[%emt 0:01:17]} 25. Rxe7 {[%emt 0:00:15]} Rxe7 {[%emt 0:00:06]} 26. g3 {[%emt 0:02:07]} g5 {[%emt 0:03:02]} 27. hxg5+ {[%emt 0:00:10]} hxg5 {[%emt 0:00:06]} 28. Kg2 {[%emt 0:00:51]} c5 {[%emt 0:00:30]} 29. Rh1 {[%emt 0:00:27]} Kg6 {[%emt 0:00:32] Prevents Rh6+.} 30. Rh8 {[%emt 0:02:41]} Re8 {[%emt 0:00:16] Prevents Rg8+} 31. Rxe8 {[%emt 0:01:51]} Bxe8 $15 {[%emt 0:00:07][%mdl 4096] Endgame KBB-KBN} 32. f4 {[%emt 0:00:26]} g4 {[%emt 0:08:12]} 33. Nd1 {[%emt 0:03:18]} Bb5 {[%emt 0:00:17]} 34. Ne3 {[%emt 0:03:32] Wards off Bc4} Bd3 {[%emt 0:00:24]} 35. Bc3 {[%emt 0:00:20]} c4 {[%emt 0:03:58]} 36. Bd4 {[%emt 0:02:11] Prevents Bc5.} b5 {[%emt 0:00:22]} 37. Kf2 {[%emt 0:01:48]} Kf7 {[%emt 0:00:50]} 38. Ke1 {[%emt 0:03:12]} Bb4+ {[%emt 0:02:34]} 39. Kd1 {[%emt 0:00:06]} Ke7 {[%emt 0:02:04]} 40. Be5 {[%emt 0:00:30]} Kd7 {[%emt 0:00:39]} 41. a3 {[%emt 0:31:39]} Bc5 {[%emt 0:31:18]} 42. Kd2 {[%emt 0:00:30]} Be4 {[%emt 0:00:09]} 43. a4 $2 {[%emt 0:02:29] [#] This costs White the game.} bxa4 $19 {[%emt 0:01:49]} 44. Bc3 {[%emt 0:02:22]} Bd3 {[%emt 0:03:50]} ({Weaker is} 44... Bxe3+ 45. Kxe3 Bxd5 46. Bg7 $11) 45. Ba5 {[%emt 0:04:12]} a3 {[%emt 0:01:46]} 46. bxa3 {[%emt 0:00:13]} Bxa3 {[%emt 0:00:09]} 47. Kc3 {[%emt 0:07:03]} Bc5 {[%emt 0:00:18]} 48. Nxc4 {[%emt 0:00:00] [#]} (48. Kd2) 48... Bxc4 {[%emt 0:00:00]} 49. Kxc4 {[%emt 0:00:00]} Bf2 {[%emt 0:00:00] Weighted Error Value: White=0.26 (precise) /Black=0.05 (flawless)   Loses game:     	White=1     	---        Mistake:       	White=2     	---        Inaccurate:     	White=4     	Black=4      OK:         	White=15    	Black=20     Best:        	White=1     	Black=2} 0-1

[Event "FIDE WSTC Open 50 2025"]
[Site "Prague"]
[Date "2025.02.18"]
[Round "2.8"]
[White "Emms, John M"]
[Black "Nielsen, Niels-Peter"]
[Result "1-0"]
[Annotator "TA"]
[ECO "B30"]
[WhiteElo "2409"]
[BlackElo "2086"]
[PlyCount "71"]
[EventDate "2025.02.17"]
[EventType "team-tourn"]
[EventCountry "CZE"]
[SourceTitle "playchess.com"]
[Source "ChessBase"]
[SourceQuality "1"]
[TimeControl "40/5400+30:1800+30"]

{[%evp 9,71,41,47,51,54,40,44,51,41,50,52,53,110,109,97,74,77,79,80,80,83,79,100,96,107,104,95,99,97,96,175,187,183,185,182,177,212,199,241,247,252,232,233,231,230,212,226,168,219,234,246,208,239,228,356,366,368,366,357,373,397,408,410,413]} 1. e4 {[%emt 0:00:10]} c5 {[%emt 0:00:07]} 2. Nf3 {[%emt 0:00:17]} Nc6 {[%emt 0:00:06]} 3. Bb5 {[%emt 0:01:21]} a6 {[%emt 0:05:43]} 4. Bxc6 {[%emt 0:00:10]} dxc6 {[%emt 0:00:30]} 5. d3 {[%emt 0:04:26]} g6 {[%emt 0:03:35]} 6. h3 {[%emt 0:06:20] B30: Sicilian: 2...Nc6 3 Bb5, lines without ...g6.} Bg7 {[%emt 0:05:10]} 7. Nc3 {[%emt 0:00:12]} Nf6 {[%emt 0:03:02]} 8. Be3 {[%emt 0:03:07] White is slightly better.} Nd7 {[%emt 0:08:48]} 9. Qd2 {[%emt 0:02:18]} Qb6 {[%emt 0:18:22]} 10. Rb1 {[%emt 0:22:10]} Bxc3 $146 {[%emt 0:15:18]} (10... O-O $14) (10... Qc7 11. Bh6 Bf6 12. O-O b6 13. Ne2 Bb7 14. Ng5 c4 15. dxc4 Ne5 16. b3 Rd8 {1-0 Luers,C (1800)-Ottenweller,W (1964) IECG RI.2006.0.00050}) 11. Qxc3 $16 {[%emt 0:00:09]} Qb4 {[%emt 0:00:05]} 12. Qd2 {[%emt 0:08:45]} Qxd2+ {[%emt 0:01:15]} 13. Nxd2 {[%emt 0:00:13]} b6 {[%emt 0:02:09]} 14. g4 {[%emt 0:10:38]} f6 {[%emt 0:09:38]} 15. Ke2 {[%emt 0:04:48]} Nf8 {[%emt 0:02:20]} 16. Nc4 {[%emt 0:11:34]} Rb8 {[%emt 0:00:48]} 17. b4 {[%emt 0:01:11]} cxb4 {[%emt 0:03:44]} 18. Nxb6 {[%emt 0:00:28] White has more active pieces.} a5 {[%emt 0:02:45]} 19. a3 {[%emt 0:04:20]} Nd7 {[%emt 0:01:48]} (19... bxa3 $16 20. Rb3 h5) 20. Nxc8 $18 {[%emt 0:02:57]} Rxc8 {[%emt 0:00:10]} 21. axb4 {[%emt 0:00:03]} axb4 {[%emt 0:00:32]} 22. Rxb4 {[%emt 0:00:05]} h5 {[%emt 0:05:18]} 23. g5 {[%emt 0:04:02]} Kf7 {[%emt 0:00:49]} 24. Rb7 {[%emt 0:00:55]} Ke6 {[%emt 0:02:42]} 25. Rg1 {[%emt 0:01:40] and gxf6 should not be overlooked} Rb8 {[%emt 0:00:53]} 26. Rxb8 {[%emt 0:01:14]} Rxb8 {[%emt 0:00:02]} 27. gxf6 {[%emt 0:00:16]} Kxf6 {[%emt 0:00:17][%mdl 4096] Endgame KRB-KRN. White is a pawn up.} 28. h4 {[%emt 0:01:05]} Kf7 {[%emt 0:01:07]} (28... Ra8 29. Bd4+ Kf7) 29. Ra1 {[%emt 0:00:34]} Rb7 {[%emt 0:01:24]} 30. Ra6 {[%emt 0:01:27]} Nb8 {[%emt 0:00:56]} 31. Ra8 {[%emt 0:00:20]} Rb1 {[%emt 0:00:54]} (31... Nd7 {was worth a try.} 32. d4 Rb2) 32. Ra7 {[%emt 0:02:22] White is winning.} Ke6 {[%emt 0:02:37]} 33. Rc7 {[%emt 0:01:49]} Kd6 {[%emt 0:01:22] [#]} 34. Rc8 {[%emt 0:00:04]} Nd7 {[%emt 0:00:47]} 35. Rg8 {[%emt 0:01:05]} Rg1 {[%emt 0:00:32]} 36. Bg5 {[%emt 0:00:42] Weighted Error Value: White=0.07 (flawless) /Black=0.18 (very precise)   Mistake:       	---       	Black=4      OK:         	White=17    	Black=9      Best:        	White=1     	Black=1} 1-0

[Event "FIDE WSTC Open 50 2025"]
[Site "Prague"]
[Date "2025.02.18"]
[Round "2.9"]
[White "Hjartarson, Johann"]
[Black "Davies, Nigel R"]
[Result "1/2-1/2"]
[Annotator "TA"]
[ECO "B42"]
[WhiteElo "2464"]
[BlackElo "2294"]
[PlyCount "83"]
[EventDate "2025.02.17"]
[EventType "team-tourn"]
[EventCountry "CZE"]
[SourceTitle "playchess.com"]
[Source "ChessBase"]
[SourceQuality "1"]
[TimeControl "40/5400+30:1800+30"]

{[%evp 14,83,50,50,49,47,48,14,51,42,41,38,56,50,52,42,48,37,40,45,43,29,29,16,21,0,62,54,62,61,41,44,52,0,51,-24,-16,-35,-20,-40,-32,-37,-39,-62,-59,-65,-61,-59,-45,-47,-39,-65,-50,-73,-50,-127,-64,-98,-96,-107,-84,-78,-81,-83,-83,-79,-45,-45,0,-52,-40,-40]} 1. e4 {[%emt 0:00:07]} c5 {[%emt 0:00:13]} 2. Nf3 {[%emt 0:00:08]} e6 {[%emt 0:00:10]} 3. d4 {[%emt 0:00:08]} cxd4 {[%emt 0:00:07]} 4. Nxd4 {[%emt 0:00:05]} a6 {[%emt 0:00:08]} 5. Bd3 {[%emt 0:00:25]} Bc5 {[%emt 0:00:34]} 6. Nb3 {[%emt 0:00:08]} Ba7 {[%emt 0:00:14]} 7. O-O {[%emt 0:00:31]} Nc6 {[%emt 0:00:31]} 8. Qg4 {[%emt 0:00:50]} Qf6 {[%emt 0:02:33] B42: Sicilian: Kan Variation: 5 Bd3.} 9. Nc3 {[%emt 0:02:12]} Nge7 {[%emt 0:05:47]} 10. Qg3 {[%emt 0:01:16][%csl Oc8][%cal Oe4e5] Black has a bad bishop} Qg6 {[%emt 0:10:05] The position is equal.} 11. Bf4 {[%emt 0:06:53]} f6 {[%emt 0:07:36]} 12. Bd6 $146 {[%emt 0:04:11]} ({Predecessor:} 12. Qxg6+ Nxg6 13. Bd6 Bb8 14. Bxb8 Rxb8 15. f4 b5 16. a4 b4 17. Ne2 Ke7 18. a5 {1-0 Dhyana,P (2023)-Jing,A (2259) New York President's Day IM-C 2025 (4)}) 12... Qxg3 {[%emt 0:04:56]} 13. hxg3 {[%emt 0:00:20] A sharp opening} Bb8 {[%emt 0:02:51]} 14. Bxb8 {[%emt 0:02:00]} Rxb8 {[%emt 0:00:08]} 15. Rad1 {[%emt 0:02:32]} Kd8 {[%emt 0:06:20]} 16. f4 {[%emt 0:02:49]} Kc7 {[%emt 0:00:22]} 17. Kf2 {[%emt 0:01:51]} d6 {[%emt 0:01:56]} 18. Rd2 {[%emt 0:05:09]} Bd7 {[%emt 0:03:54]} 19. Nd1 {[%emt 0:12:48]} b5 {[%emt 0:07:35]} (19... h5 $11) 20. Ne3 {[%emt 0:00:36]} a5 {[%emt 0:03:10][%cal Ba6a5,Ba5a4][%mdl 32]} 21. c3 {[%emt 0:10:15] White is more active.} a4 {[%emt 0:07:34]} 22. Nc1 {[%emt 0:00:31]} Na5 {[%emt 0:01:48]} 23. Nc2 {[%emt 0:06:00]} (23. Rfd1 $14) 23... Nec6 {[%emt 0:02:54]} (23... Nb7 $11) 24. a3 {[%emt 0:03:28]} (24. Be2 $14) 24... Nb7 $11 {[%emt 0:02:18]} 25. Nb4 {[%emt 0:04:50]} (25. Bxb5 Nc5 26. Bd3 (26. Bxc6 $2 Bxc6 27. e5 Ne4+ 28. Ke3 dxe5 $19) 26... Rxb2 $17) 25... Nc5 {[%emt 0:00:14] Prevents Na6+.} 26. Bc2 {[%emt 0:01:09]} (26. Ke3 {with more complications.} h5 27. Rfd1 Na5 28. Be2) 26... Na5 {[%emt 0:00:23]} 27. Re2 $1 {[%emt 0:02:04]} Rbd8 {[%emt 0:00:33]} 28. Bb1 {[%emt 0:02:05]} Bc8 {[%emt 0:00:28]} 29. Ba2 {[%emt 0:06:51]} Bb7 {[%emt 0:01:04]} 30. Rfe1 {[%emt 0:00:16]} Nc4 {[%emt 0:04:35]} 31. Ncd3 {[%emt 0:02:09]} Rhe8 {[%emt 0:11:44]} 32. g4 {[%emt 0:08:16]} h6 {[%emt 0:00:34]} 33. g3 {[%emt 0:01:54]} Kb6 {[%emt 0:01:07]} 34. Bb1 {[%emt 0:05:51]} (34. Kg1 $15) 34... e5 {[%emt 0:03:21]} (34... Rh8 $17 {and ...h5 should not be overlooked} 35. Ba2 Nxd3+ 36. Nxd3 h5) 35. Nd5+ {[%emt 0:02:49]} Bxd5 {[%emt 0:00:09][%csl Oc4] Strong Square Black (c4)} 36. exd5 {[%emt 0:00:04]} Nxd3+ {[%emt 0:00:17]} 37. Bxd3 {[%emt 0:00:03]} Kc5 {[%emt 0:00:16]} 38. Bg6 {[%emt 0:04:37]} Re7 {[%emt 0:00:16]} 39. Rd1 {[%emt 0:00:37]} Rdd7 {[%emt 0:00:23] [#]} (39... Nb6 $5 40. Bc2 Nxd5 41. b4+ axb3 42. Bxb3 Nb6 (42... Nxc3 $2 43. Rc1 $17) 43. fxe5 fxe5 $17) 40. Bf5 {[%emt 0:00:28]} Rd8 {[%emt 0:01:54]} 41. Be6 {[%emt 0:31:08]} ({White should try} 41. Bg6 $1 $11) 41... Kb6 {[%emt 0:34:19]} 42. Kf3 {[%emt 0:00:00] Weighted Error Value: White=0.18 (very precise) /Black=0.13 (very precise)   Mistake:       	White=4     	Black=3      Inaccurate:     	White=3     	Black=3      OK:         	White=5     	Black=17     Best:        	White=4     	Black=1      Strong:       	White=1     	---} 1/2-1/2

[Event "FIDE WSTC Open 50 2025"]
[Site "Prague"]
[Date "2025.02.18"]
[Round "2.10"]
[White "Dishman, Stephen"]
[Black "Thorhallsson, Throstur"]
[Result "0-1"]
[Annotator "TA"]
[ECO "A14"]
[WhiteElo "2273"]
[BlackElo "2394"]
[PlyCount "92"]
[EventDate "2025.02.17"]
[EventType "team-tourn"]
[EventCountry "CZE"]
[SourceTitle "playchess.com"]
[Source "ChessBase"]
[SourceQuality "1"]
[TimeControl "40/5400+30:1800+30"]

{[%evp 24,92,20,28,23,16,22,10,22,22,46,46,57,56,105,97,131,89,108,-3,0,-37,-47,-56,-27,-104,-116,-104,-99,-97,-131,-131,-120,-146,-62,-75,-63,-414,-406,-404,-425,-420,-418,-392,-389,-484,-505,-490,-507,-506,-506,-509,-474,-558,-498,-545,-559,-562,-570,-616,-556,-557,-539,-597,-597,-737,-736,-728,-728,-866,-835]} 1. Nf3 {[%emt 0:00:05]} d5 {[%emt 0:01:10]} 2. c4 {[%emt 0:00:12]} e6 {[%emt 0:00:16]} 3. g3 {[%emt 0:00:34]} Nf6 {[%emt 0:00:32]} 4. Bg2 {[%emt 0:00:27]} Be7 {[%emt 0:01:00]} 5. O-O {[%emt 0:00:27]} O-O {[%emt 0:00:23]} 6. d4 {[%emt 0:00:26]} dxc4 {[%emt 0:01:04]} 7. Ne5 {[%emt 0:01:08]} Nc6 {[%emt 0:01:35]} 8. Bxc6 {[%emt 0:00:06]} bxc6 {[%emt 0:00:06]} 9. Nxc6 {[%emt 0:00:04]} Qe8 {[%emt 0:01:18]} 10. Nxe7+ {[%emt 0:00:05]} Qxe7 {[%emt 0:00:06]} 11. Qa4 {[%emt 0:00:05]} e5 {[%emt 0:04:57]} 12. dxe5 {[%emt 0:00:21]} Qxe5 {[%emt 0:00:30]} 13. Qxc4 {[%emt 0:00:25]} Be6 {[%emt 0:02:36] E05: Open Catalan: 5 Nf3 Be7.} 14. Qd3 {[%emt 0:01:03]} Rad8 {[%emt 0:01:58]} 15. Qe3 {[%emt 0:00:32]} Qh5 {[%emt 0:01:37] The position is equal.} 16. f3 {[%emt 0:00:14][%cal Oe3g5] Wards off Ng4} Rfe8 {[%emt 0:07:36]} 17. Qg5 {[%emt 0:01:36]} Qh3 {[%emt 0:04:03]} 18. Qc5 {[%emt 0:00:15][%csl LRa7,LRc7] Dodges Bc4} Nd5 $146 {[%emt 0:22:15] [#] Dodges Nc3} (18... Bc8 $14 19. Nc3 Ba6) (18... Bd5 19. e4 Nxe4 20. fxe4 Bxe4 21. Qf2 Bb7 22. Nc3 Re7 23. Bf4 Rde8 24. Rad1 h6 {½-½ Lima,D (2514)-Leitao,R (2565) Sao Paulo zt 2.4 2000 (7)}) 19. e4 $1 $16 {[%emt 0:34:44]} Nb6 {[%emt 0:01:08]} 20. Nc3 {[%emt 0:00:28][%cal Oc1f4]} Nd7 {[%emt 0:08:45]} 21. Qg5 {[%emt 0:15:22] [#]} (21. Qxa7 Bc4 22. Rf2 Ne5 $14) (21. Qxc7 $16 {[%cal Oc1f4] Bf4! would now be deadly.} Ne5 22. Bf4 (22. Qxe5 Bc4 $15)) 21... Ne5 $1 $40 {[%emt 0:06:58][%mdl 128] White needs to defend precisely.} 22. Qxe5 {[%emt 0:20:17]} (22. Bf4 $5 f6 23. Qh4 Qxh4 24. gxh4 $11) 22... Bc4 {[%emt 0:01:54][%csl Gc4,LRe5,LRf1][%cal Rh3f1]} 23. Qxe8+ $1 {[%emt 0:00:33]} Rxe8 {[%emt 0:00:02]} 24. Rd1 {[%emt 0:00:29]} (24. Rf2 $11) 24... f5 {[%emt 0:01:05] Black is more active.} 25. Bf4 {[%emt 0:01:33]} Qh5 {[%emt 0:03:52]} 26. Rd4 {[%emt 0:03:11]} Ba6 {[%emt 0:02:50]} 27. Kg2 {[%emt 0:05:43]} fxe4 {[%emt 0:00:19]} 28. fxe4 {[%emt 0:02:33] [#]} Bb7 {[%emt 0:05:08] Dodges Rd5. Chess con chili.} ({Better is} 28... g5 $1 $17 {[%cal Rg5f4]} 29. Be3 Be2) 29. Re1 $1 $15 {[%emt 0:03:47]} Rf8 {[%emt 0:01:06]} 30. Rb4 $2 {[%emt 0:01:11][%mdl 8192] Now White is beyond hope.} ({White should try} 30. Kg1 $15) 30... Bc8 $19 {[%emt 0:01:37]} 31. h4 {[%emt 0:02:07] [#]} Rxf4 {[%emt 0:06:33][%mdl 512]} 32. gxf4 {[%emt 0:00:21]} Qg4+ {[%emt 0:00:06]} ({Weaker is} 32... Qxh4 33. Re3 $17) 33. Kf2 {[%emt 0:02:06]} Qxf4+ {[%emt 0:00:30]} 34. Ke2 {[%emt 0:00:59]} Ba6+ {[%emt 0:03:25] Black is clearly winning.} (34... Qxh4 35. Rb8 Kf7 36. Kd2 (36. Rf1+ $2 Kg6 $19) 36... Qf2+ 37. Re2 Qf4+ 38. Kc2 $17) 35. Kd1 {[%emt 0:02:09]} Qd6+ {[%emt 0:00:45]} (35... Qxh4 36. Rd4 $19) 36. Nd5 {[%emt 0:00:05]} c6 {[%emt 0:00:20]} 37. Rd4 {[%emt 0:01:21]} cxd5 {[%emt 0:00:17]} 38. Rxd5 {[%emt 0:00:59]} Qb4 {[%emt 0:01:38]} 39. Rd2 {[%emt 0:00:44]} Bc4 {[%emt 0:01:08]} 40. b3 {[%emt 0:00:44]} Be6 {[%emt 0:00:36] ...Qc3 would now be deadly.} 41. Re3 {[%emt 0:07:49]} Qc5 {[%emt 0:00:44]} 42. Rd8+ {[%emt 0:02:49]} Kf7 {[%emt 0:00:08]} 43. Rf3+ {[%emt 0:01:30]} Ke7 {[%emt 0:00:50]} 44. Rff8 {[%emt 0:00:49]} Bg4+ {[%emt 0:06:00]} 45. Kd2 {[%emt 0:00:31]} Bd7 {[%emt 0:02:04]} 46. Ra8 {[%emt 0:01:55]} Qd4+ {[%emt 0:00:22] Weighted Error Value: White=0.44/Black=0.12 (very precise)   Loses game:     	White=1     	---        Mistake:       	White=2     	Black=2      Inaccurate:     	White=2     	Black=2      OK:         	White=12    	Black=13     Best:        	White=4     	Black=5      Strong:       	White=3     	---        Brilliant:      	---       	Black=1} 0-1

[Event "FIDE WSTC Open 50 2025"]
[Site "Prague"]
[Date "2025.02.18"]
[Round "2.11"]
[White "Olafsson, Helgi"]
[Black "Josse, Mark"]
[Result "1/2-1/2"]
[Annotator "TA"]
[ECO "D00"]
[WhiteElo "2466"]
[BlackElo "2139"]
[PlyCount "67"]
[EventDate "2025.02.17"]
[EventType "team-tourn"]
[EventCountry "CZE"]
[SourceTitle "playchess.com"]
[Source "ChessBase"]
[SourceQuality "1"]
[TimeControl "40/5400+30:1800+30"]

{[%evp 9,67,5,0,0,28,18,33,33,30,34,46,47,41,27,30,24,39,25,46,0,58,57,67,60,64,64,67,47,78,66,70,70,73,70,143,134,262,250,465,461,466,459,433,314,304,307,307,307,306,293,291,251,425,315,301,271,375,309,947,946]} 1. d4 {[%emt 0:00:10]} d5 {[%emt 0:04:00]} 2. Bf4 {[%emt 0:00:12]} Nf6 {[%emt 0:00:35]} 3. e3 {[%emt 0:00:18]} e6 {[%emt 0:00:53]} 4. Nf3 {[%emt 0:00:46]} Bd6 {[%emt 0:00:12]} 5. Nbd2 {[%emt 0:01:12]} O-O {[%emt 0:00:33]} 6. Bd3 {[%emt 0:01:40] D02: 1 d4 d5 2 Nf3 sidelines, including 2...Nf6 3 g3 and 2...Nf6 3 Bf4.} c5 {[%emt 0:00:50]} 7. dxc5 {[%emt 0:00:34]} Bxf4 {[%emt 0:00:40]} 8. exf4 {[%emt 0:00:07] White is slightly better.} Qc7 {[%emt 0:01:14][%csl LRc5,LRf4]} 9. g3 {[%emt 0:00:45]} Qxc5 {[%emt 0:01:07]} 10. O-O {[%emt 0:00:30]} b6 {[%emt 0:00:10]} 11. Qe2 {[%emt 0:04:24]} Nbd7 {[%emt 0:17:12]} 12. Ne5 {[%emt 0:06:46]} Bb7 {[%emt 0:10:56]} 13. c3 $146 {[%emt 0:08:23]} ({Predecessor:} 13. Nxd7 Nxd7 14. Nb3 Qc7 15. Nd4 Rac8 16. Rfe1 Rfd8 17. Rad1 Qd6 18. c3 Qf8 19. Bb5 {1-0 Sandipan,C (2458)-Ashraf,A (2289) Abu Dhabi op 28th 2022 (2)}) 13... Rad8 {[%emt 0:12:27]} 14. Rfe1 {[%emt 0:01:40]} (14. Nb3 $14 Qc7 15. Nd4) 14... Rfe8 {[%emt 0:04:12]} (14... d4 $11) 15. Nb3 {[%emt 0:01:02]} Qd6 {[%emt 0:02:18]} 16. Bb5 {[%emt 0:02:50]} Rf8 {[%emt 0:01:02]} 17. Nd4 {[%emt 0:09:37]} Nc5 {[%emt 0:17:03]} 18. Qe3 {[%emt 0:03:16]} Rc8 {[%emt 0:09:51]} 19. a4 {[%emt 0:03:34]} a6 {[%emt 0:00:34]} 20. Bf1 {[%emt 0:00:06][%cal Bb5f1,Bf1h3,Bh3e6][%mdl 32]} Qc7 {[%emt 0:04:26]} 21. f3 {[%emt 0:07:15]} Ne8 {[%emt 0:00:39] [#]} ({Black should play} 21... Ncd7 $14) 22. Bh3 $1 $16 {[%emt 0:01:17] White has more active pieces.} Nd6 {[%emt 0:01:44]} (22... Nf6 $16 23. b3 Ncd7) 23. b4 $18 {[%emt 0:04:30]} Nd7 $2 {[%emt 0:04:34] [#]} (23... Rfe8 24. bxc5 bxc5) 24. Nxe6 $1 {[%emt 0:00:30][%mdl 512]} fxe6 {[%emt 0:00:05]} 25. Bxe6+ {[%emt 0:04:44]} Kh8 {[%emt 0:00:21]} 26. Bxd7 {[%emt 0:00:05]} Rcd8 {[%emt 0:00:35]} 27. Bg4 {[%emt 0:00:36]} Nc4 {[%emt 0:01:42]} 28. Nxc4 {[%emt 0:02:02]} dxc4 {[%emt 0:00:50]} 29. Qe7 {[%emt 0:02:17]} Qb8 {[%emt 0:01:37]} 30. Re5 {[%emt 0:04:37]} Qa8 $2 {[%emt 0:00:32]} (30... h6 {was necessary.} 31. Qe6 Qa8) 31. Rae1 {[%emt 0:00:52]} h6 {[%emt 0:00:55]} 32. R1e3 {[%emt 0:01:09]} Bc6 {[%emt 0:00:23]} 33. Qc7 {[%emt 0:01:32] Re7 would now be deadly.} Rd2 $2 {[%emt 0:01:01]} (33... Bxa4 34. Qxb6 (34. Qxc4 Rd1+ 35. Re1 Bb5 $18) 34... Rd3) 34. Re7 {[%emt 0:01:15][%mdl 32768] Weighted Error Value: White=0.19 (very precise) /Black=0.48 An unexpected result.  Mistake:       	White=1     	Black=6      Inaccurate:     	---       	Black=3      OK:         	White=9     	Black=8      Best:        	White=2     	---        Brilliant:      	White=1     	---} 1/2-1/2